[Event "EYTCC U18 Girls 2018"]
[Site "Bad Blankeburg"]
[Date "2018.07.15"]
[Round "4"]
[White "Blazeka, Mihaela"]
[Black "Hercog, Nusa"]
[Result "0-1"]
[ECO "B44"]
[WhiteElo "2054"]
[BlackElo "2011"]
[Annotator "NA"]
[PlyCount "76"]
[EventDate "2018.07.12"]
[EventType "swiss"]
[EventCountry "GER"]
[SourceTitle "playchess.com"]
[Source "ChessBase"]
[SourceQuality "1"]
[TimeControl "40/5400+30:1800+30"]

1. e4 {[%emt 0:00:00]} c5 {[%emt 0:00:00]} 2. Nf3 {[%emt 0:00:00]} e6 {[%emt 0:00:00]} 3. d4 {[%emt 0:00:00]} cxd4 {[%emt 0:00:00]} 4. Nxd4 {[%emt 0:00:00]} Nc6 {[%emt 0:00:07]} 5. c4 {[%emt 0:00:12]} Nf6 {[%emt 0:01:22]} 6. Nc3 {[%emt 0:00:08]} Bb4 {[%emt 0:00:48]} 7. Nxc6 {[%emt 0:00:09]} bxc6 {[%emt 0:00:11]} 8. Bd3 {[%emt 0:00:05]} e5 {[%emt 0:00:48]} 9. O-O {[%emt 0:00:40]} O-O {[%emt 0:02:03]} 10. Qe2 {[%emt 0:00:07]} d6 {[%emt 0:03:31]} 11. Na4 {[%emt 0:02:51]} Be6 {[%emt 0:06:39]} 12. a3 {[%emt 0:15:43]} Ba5 {[%emt 0:00:14]} 13. b4 {[%emt 0:00:05]} Bc7 {[%emt 0:00:25]} 14. Be3 {[%emt 0:04:38]} Ng4 {[%emt 0:05:51]} 15. Bd2 {[%emt 0:01:22]} Nf6 {[%emt 0:25:05]} 16. h3 {[%emt 0:06:08]} h6 {[%emt 0:03:19]} 17. f4 {[%emt 0:05:18]} exf4 {[%emt 0:16:32]} 18. Bxf4 {[%emt 0:00:17]} d5 {[%emt 0:00:37]} 19. Rad1 {[%emt 0:20:32]} Bxf4 {[%emt 0:04:32]} 20. Rxf4 {[%emt 0:02:16]} dxc4 {[%emt 0:01:59]} 21. Bc2 {[%emt 0:02:57]} Qe7 {[%emt 0:02:03]} 22. e5 {[%emt 0:05:56]} Nd5 {[%emt 0:01:14]} 23. Rxc4 {[%emt 0:01:08]} Qg5 {[%emt 0:05:01]} 24. Rxc6 {[%emt 0:12:27]} Nf4 {[%emt 0:01:10]} 25. Qe4 {[%emt 0:02:03]} Bf5 {[%emt 0:01:51]} 26. Qf3 {[%emt 0:00:12]} Bxh3 {[%emt 0:02:21]} 27. g3 {[%emt 0:02:11]} Bg2 {[%emt 0:04:33]} 28. Qxf4 {[%emt 0:02:10]} Qxf4 {[%emt 0:00:07]} 29. gxf4 {[%emt 0:00:07]} Bxc6 {[%emt 0:00:03]} 30. Nc3 {[%emt 0:01:19]} Rfd8 {[%emt 0:01:28]} 31. Bd3 {[%emt 0:00:11]} Bf3 {[%emt 0:01:41]} 32. Rd2 {[%emt 0:00:05]} Rac8 {[%emt 0:00:25]} 33. Nb5 {[%emt 0:00:15]} Rd5 {[%emt 0:04:38]} 34. Kf2 {[%emt 0:00:38]} Be4 {[%emt 0:01:27]} 35. Nd6 {[%emt 0:03:28]} Rc3 {[%emt 0:00:12]} 36. Nxe4 {[%emt 0:00:23]} Rdxd3 {[%emt 0:00:28]} 37. Nxc3 {[%emt 0:00:22]} Rxd2+ {[%emt 0:00:02]} 38. Ke3 {[%emt 0:00:13]} Rb2 0-1

[Event "EYTCC U18 Girls 2018"]
[Site "Bad Blankeburg"]
[Date "2018.07.15"]
[Round "4"]
[White "Lehaci, Miruna Daria"]
[Black "Rozman, Monika"]
[Result "0-1"]
[ECO "C65"]
[WhiteElo "2015"]
[BlackElo "2125"]
[Annotator "NA"]
[PlyCount "70"]
[EventDate "2018.07.12"]
[EventType "swiss"]
[EventCountry "GER"]
[SourceTitle "playchess.com"]
[Source "ChessBase"]
[SourceQuality "1"]
[TimeControl "40/5400+30:1800+30"]

1. e4 {[%emt 0:00:00]} e5 {[%emt 0:00:00]} 2. Nf3 {[%emt 0:00:00]} Nc6 {[%emt 0:00:00]} 3. Bb5 {[%emt 0:00:00]} Nf6 {[%emt 0:00:00]} 4. d3 {[%emt 0:00:00]} d6 {[%emt 0:00:22]} 5. O-O {[%emt 0:00:17]} g6 {[%emt 0:03:21]} 6. c4 {[%emt 0:02:38]} Bg7 {[%emt 0:02:39]} 7. Nc3 {[%emt 0:00:54]} O-O {[%emt 0:01:16]} 8. h3 {[%emt 0:01:54]} Ne7 {[%emt 0:05:45]} 9. Re1 {[%emt 0:05:40]} h6 {[%emt 0:09:00]} 10. Ba4 {[%emt 0:03:59]} Be6 {[%emt 0:02:50]} 11. Bb3 {[%emt 0:10:56]} g5 {[%emt 0:03:20]} 12. c5 {[%emt 0:07:54]} Ng6 {[%emt 0:04:18]} 13. Bxe6 {[%emt 0:05:39]} fxe6 {[%emt 0:00:11]} 14. Qb3 {[%emt 0:00:26]} Qd7 {[%emt 0:06:47]} 15. Qxb7 {[%emt 0:02:23]} Rab8 {[%emt 0:02:05]} 16. Qa6 {[%emt 0:01:45]} Nh5 {[%emt 0:01:25]} 17. Qa4 $14 {[%emt 0:04:21]} Qf7 {[%emt 0:01:11]} 18. cxd6 {[%emt 0:04:34]} Nh4 {[%emt 0:04:10]} 19. Qd1 {[%emt 0:02:12]} cxd6 {[%emt 0:04:35]} 20. Qe2 {[%emt 0:12:01]} Nxf3+ {[%emt 0:02:28]} 21. Qxf3 {[%emt 0:00:07]} Qxf3 {[%emt 0:01:51]} 22. gxf3 {[%emt 0:00:10]} Rxf3 {[%emt 0:01:22]} 23. Re3 {[%emt 0:00:24]} Rf7 {[%emt 0:00:54]} 24. b3 {[%emt 0:06:05]} Nf4 {[%emt 0:01:48]} 25. Nd1 {[%emt 0:09:07]} d5 {[%emt 0:00:50]} 26. Kf1 {[%emt 0:02:03]} Rc8 {[%emt 0:12:02]} 27. Bb2 {[%emt 0:02:35]} d4 {[%emt 0:02:32]} 28. Rf3 {[%emt 0:01:36]} Rfc7 {[%emt 0:02:24]} 29. Ke1 {[%emt 0:06:28]} Rc2 {[%emt 0:04:10]} 30. Rb1 {[%emt 0:01:46]} Kh7 {[%emt 0:05:11]} 31. a4 {[%emt 0:01:25]} Bf8 {[%emt 0:00:47]} 32. Ba1 {[%emt 0:00:43]} Bb4+ {[%emt 0:00:32]} 33. Kf1 {[%emt 0:00:07]} Rc1 {[%emt 0:00:16]} 34. Rxc1 {[%emt 0:02:15]} Rxc1 {[%emt 0:00:07]} 35. Bb2 {[%emt 0:00:06]} Rxd1# {[%emt 0:00:04]} 0-1

[Event "EYTCC U18 Girls 2018"]
[Site "Bad Blankeburg"]
[Date "2018.07.16"]
[Round "5"]
[White "Sieber, Fiona"]
[Black "Cvitan, Ena"]
[Result "1-0"]
[ECO "B12"]
[WhiteElo "2283"]
[BlackElo "2125"]
[Annotator "NA"]
[PlyCount "87"]
[EventDate "2018.07.12"]
[EventType "swiss"]
[EventCountry "GER"]
[SourceTitle "playchess.com"]
[Source "ChessBase"]
[SourceQuality "1"]
[TimeControl "40/5400+30:1800+30"]

1. e4 {[%emt 0:00:00]} c6 {[%emt 0:00:00]} 2. d4 {[%emt 0:00:00]} d5 {[%emt 0:00:00]} 3. e5 {[%emt 0:00:00]} Bf5 {[%emt 0:00:00]} 4. Nf3 {[%emt 0:00:00]} e6 {[%emt 0:00:11]} 5. Be2 {[%emt 0:00:00]} c5 {[%emt 0:00:21]} 6. Be3 {[%emt 0:00:09]} cxd4 {[%emt 0:00:30]} 7. Nxd4 {[%emt 0:00:07]} Ne7 {[%emt 0:00:19]} 8. Nd2 {[%emt 0:00:06] B12: Caro-Kann: Advance Variation} Nbc6 {[%emt 0:00:19]} 9. N2f3 {[%emt 0:00:06]} Bg4 {[%emt 0:00:04]} 10. O-O {[%emt 0:01:48]} g6 {[%emt 0:00:10]} 11. Qd2 $146 {[%emt 0:11:10]} ({Predecessor:} 11. h3 Bxf3 12. Nxf3 Bg7 13. Bf4 O-O 14. c3 Qc7 15. Re1 Nxe5 {½-½ (59) Dominguez Perez,L (2739)-So,W (2788) Saint Louis 2017}) 11... Bg7 {[%emt 0:04:32]} 12. Bh6 {[%emt 0:17:02]} O-O {[%emt 0:03:32]} 13. Rfe1 {[%emt 0:03:58]} a6 {[%emt 0:09:24]} 14. c3 {[%emt 0:06:28]} Rc8 {[%emt 0:07:22]} 15. Rad1 {[%emt 0:01:43]} Qc7 {[%emt 0:05:24]} 16. Bxg7 {[%emt 0:02:44]} Kxg7 {[%emt 0:01:21]} 17. Qf4 {[%emt 0:00:18]} Bxf3 {[%emt 0:05:54]} 18. Qf6+ {[%emt 0:00:36]} Kg8 {[%emt 0:02:15]} 19. Nxf3 {[%emt 0:00:30]} h6 {[%emt 0:11:42]} 20. Bd3 {[%emt 0:04:19]} Qd8 {[%emt 0:03:55]} 21. Qf4 {[%emt 0:05:39]} Kg7 {[%emt 0:01:46]} 22. h4 {[%emt 0:00:47]} Nf5 {[%emt 0:07:03]} 23. h5 {[%emt 0:06:03]} b5 {[%emt 0:07:17]} 24. g4 {[%emt 0:03:36]} Nh4 $2 {[%emt 0:03:31]} ({Besser ist} 24... g5 $14 25. Qd2 Nh4 26. Nxh4 gxh4) 25. Qf6+ $1 {[%emt 0:00:13]} Qxf6 {[%emt 0:02:19]} 26. exf6+ {[%emt 0:00:02]} Kxf6 {[%emt 0:00:16]} 27. Nxh4 {[%emt 0:00:04]} gxh5 {[%emt 0:02:22]} 28. gxh5 {[%emt 0:00:24]} Rg8+ {[%emt 0:00:21]} 29. Kh2 {[%emt 0:02:49]} Ne5 {[%emt 0:03:36]} 30. Be2 {[%emt 0:03:10]} Ng4+ {[%emt 0:04:27]} 31. Bxg4 {[%emt 0:00:08]} Rxg4 {[%emt 0:00:05]} 32. Nf3 {[%emt 0:00:14]} Rf4 {[%emt 0:00:37]} 33. Re3 {[%emt 0:02:58]} Rf5 {[%emt 0:00:51]} 34. Rd4 {[%emt 0:02:36]} Rg8 {[%emt 0:01:59]} 35. Kh3 {[%emt 0:06:00]} Rxh5+ {[%emt 0:00:25]} 36. Rh4 {[%emt 0:04:08]} Rxh4+ {[%emt 0:00:15]} 37. Nxh4 {[%emt 0:00:10]} e5 {[%emt 0:01:27]} 38. Rg3 {[%emt 0:02:43]} Rc8 {[%emt 0:00:22]} 39. Kg2 {[%emt 0:03:18]} Rc4 {[%emt 0:01:53]} 40. Nf3 {[%emt 0:01:56]} a5 $18 {[%emt 0:02:38]} 41. Rh3 {[%emt 0:35:49]} Ke6 {[%emt 0:32:37]} 42. Rxh6+ {[%emt 0:00:48]} f6 {[%emt 0:00:04]} 43. Rh4 {[%emt 0:01:02]} Rxh4 {[%emt 0:04:10]} 44. Nxh4 {[%emt 0:00:02]} 1-0

[Event "EYTCC U18 Girls 2018"]
[Site "Bad Blankeburg"]
[Date "2018.07.16"]
[Round "5"]
[White "Urh, Zala"]
[Black "Antolak, Julia"]
[Result "0-1"]
[ECO "D97"]
[WhiteElo "2216"]
[BlackElo "2282"]
[Annotator "NA"]
[PlyCount "54"]
[EventDate "2018.07.12"]
[EventType "swiss"]
[EventCountry "GER"]
[SourceTitle "playchess.com"]
[Source "ChessBase"]
[SourceQuality "1"]
[TimeControl "40/5400+30:1800+30"]

1. d4 {[%emt 0:00:00]} Nf6 {[%emt 0:00:00]} 2. c4 {[%emt 0:00:00]} g6 {[%emt 0:00:00]} 3. Nc3 {[%emt 0:00:00]} d5 {[%emt 0:00:00]} 4. Nf3 {[%emt 0:00:00]} Bg7 {[%emt 0:00:00]} 5. Qb3 {[%emt 0:00:00]} dxc4 {[%emt 0:00:00]} 6. Qxc4 {[%emt 0:00:04]} O-O {[%emt 0:00:24]} 7. e4 {[%emt 0:00:34]} Nc6 {[%emt 0:00:25]} 8. Be2 {[%emt 0:02:26]} e5 {[%emt 0:00:22] D97: Grünfeld: Russian System: 7 e4, replies other than 7...Bg4} 9. d5 {[%emt 0:00:39]} Nd4 {[%emt 0:00:07]} 10. Nxd4 {[%emt 0:00:54]} exd4 {[%emt 0:00:04]} 11. Qxd4 {[%emt 0:00:13]} c6 {[%emt 0:00:07]} 12. d6 {[%emt 0:04:19]} Re8 {[%emt 0:01:13]} 13. Qd3 {[%emt 0:09:27] LiveBook: 5 Games} b5 {[%emt 0:27:47] [#]} 14. Bf3 $146 {[%emt 0:09:20]} ({Predecessor:} 14. f3 Re6 15. Qc2 Rxd6 16. Bf4 {1-0 (48) Wang,H (2710)-Aronian,L (2797) Beijing 2014}) 14... Be6 {[%emt 0:04:35]} 15. Bf4 {[%emt 0:06:21]} Bc4 {[%emt 0:07:28]} 16. Qc2 {[%emt 0:00:18]} Nd5 {[%emt 0:04:55]} 17. Nxd5 {[%emt 0:07:21]} cxd5 {[%emt 0:00:07]} 18. a4 {[%emt 0:04:46]} (18. Qd2 $17 {keeps fighting.}) 18... g5 {[%emt 0:15:27]} 19. Be3 {[%emt 0:02:04]} d4 {[%emt 0:03:53]} 20. axb5 $19 {[%emt 0:12:16]} Rc8 {[%emt 0:05:11]} 21. Bxg5 {[%emt 0:04:15]} Qxd6 {[%emt 0:01:18]} 22. Qd2 {[%emt 0:04:03]} Qg6 {[%emt 0:04:37]} 23. Qf4 {[%emt 0:05:42]} Rc5 {[%emt 0:10:23]} 24. Bh4 {[%emt 0:05:34]} Rce5 {[%emt 0:01:15]} 25. Ra6 {[%emt 0:15:01]} Rxe4+ {[%emt 0:01:46]} 26. Bxe4 {[%emt 0:00:06]} Rxe4+ {[%emt 0:00:03]} 27. Kd2 {[%emt 0:00:45]} Re2+ {[%emt 0:00:28]} 0-1

[Event "EYTCC U18 Girls 2018"]
[Site "Bad Blankeburg"]
[Date "2018.07.16"]
[Round "5"]
[White "Kiolbasa, Oliwia"]
[Black "Hercog, Nusa"]
[Result "1/2-1/2"]
[ECO "B47"]
[WhiteElo "2189"]
[BlackElo "2011"]
[Annotator "NA"]
[PlyCount "115"]
[EventDate "2018.07.12"]
[EventType "swiss"]
[EventCountry "GER"]
[SourceTitle "playchess.com"]
[Source "ChessBase"]
[SourceQuality "1"]
[TimeControl "40/5400+30:1800+30"]

1. e4 {[%emt 0:00:00]} c5 {[%emt 0:00:00]} 2. Nf3 {[%emt 0:00:00]} e6 {[%emt 0:00:00]} 3. d4 {[%emt 0:00:00]} cxd4 {[%emt 0:00:00]} 4. Nxd4 {[%emt 0:00:00]} Nc6 {[%emt 0:00:00]} 5. Nc3 {[%emt 0:00:14]} Qc7 {[%emt 0:00:07]} 6. g3 {[%emt 0:00:13]} a6 {[%emt 0:01:11]} 7. Bg2 {[%emt 0:00:08]} Nf6 {[%emt 0:01:39]} 8. O-O {[%emt 0:00:29]} Be7 {[%emt 0:09:02]} 9. Re1 {[%emt 0:01:20]} O-O {[%emt 0:03:55] LiveBook: 154 Games} 10. Nxc6 {[%emt 0:12:15]} bxc6 {[%emt 0:00:43]} 11. e5 {[%emt 0:22:07]} Nd5 {[%emt 0:00:54]} 12. Na4 {[%emt 0:01:33]} Nb6 {[%emt 0:05:15]} 13. Nxb6 {[%emt 0:01:05]} Qxb6 {[%emt 0:00:19]} 14. c4 {[%emt 0:02:20]} f6 {[%emt 0:03:56]} 15. Qc2 {[%emt 0:03:48]} fxe5 $14 {[%emt 0:11:50]} 16. Be4 {[%emt 0:11:42]} h6 {[%emt 0:04:46]} 17. Bh7+ {[%emt 0:04:26]} Kh8 {[%emt 0:00:10]} 18. Rxe5 {[%emt 0:00:17]} Bc5 {[%emt 0:18:09]} 19. Be3 {[%emt 0:02:39]} d5 {[%emt 0:04:27]} 20. Bxc5 {[%emt 0:07:46]} Qxc5 {[%emt 0:00:07]} 21. cxd5 {[%emt 0:00:05]} Qd6 {[%emt 0:08:26]} 22. Rae1 {[%emt 0:01:51]} cxd5 {[%emt 0:00:47]} 23. Bd3 {[%emt 0:00:34]} Bd7 {[%emt 0:02:48]} 24. Qe2 {[%emt 0:01:38]} Rf6 {[%emt 0:01:35]} 25. Bb1 {[%emt 0:06:08]} Qc5 {[%emt 0:02:57]} 26. Re3 {[%emt 0:01:55]} Raf8 {[%emt 0:02:09]} 27. Qd3 {[%emt 0:06:00]} g6 {[%emt 0:02:21]} 28. f4 {[%emt 0:01:45]} Kg7 {[%emt 0:06:18]} 29. Qc3 {[%emt 0:02:00]} Qb6 {[%emt 0:01:15]} 30. Rd1 {[%emt 0:02:09]} Rc8 {[%emt 0:01:21]} 31. Qe5 {[%emt 0:00:33]} Rc4 {[%emt 0:05:06]} 32. Kg2 {[%emt 0:00:17]} Bc6 {[%emt 0:00:41]} 33. Rb3 {[%emt 0:02:10]} Qa7 {[%emt 0:00:30]} 34. Re1 {[%emt 0:03:09]} Kf7 {[%emt 0:00:51]} 35. Bd3 {[%emt 0:00:47]} Rc5 {[%emt 0:00:34]} 36. Qb8 {[%emt 0:00:37]} Qxb8 {[%emt 0:01:40]} 37. Rxb8 {[%emt 0:00:02]} Bb5 {[%emt 0:01:03]} 38. Bxb5 {[%emt 0:00:22]} axb5 {[%emt 0:00:42]} 39. Re2 {[%emt 0:00:16]} Ke7 {[%emt 0:00:28]} 40. b4 {[%emt 0:00:25]} Rc4 {[%emt 0:01:14]} 41. Rxb5 {[%emt 0:31:20]} Kd7 {[%emt 0:30:37]} 42. h4 {[%emt 0:00:00]} g5 {[%emt 0:00:00]} 43. hxg5 {[%emt 0:00:00]} hxg5 {[%emt 0:00:00]} 44. fxg5 {[%emt 0:00:00]} Rg6 {[%emt 0:00:00]} 45. Rb6 {[%emt 0:00:00]} Rxg5 {[%emt 0:00:00]} 46. Rbxe6 {[%emt 0:00:00]} Rxb4 {[%emt 0:00:00]} 47. R6e5 {[%emt 0:00:00]} Rxe5 {[%emt 0:00:00]} 48. Rxe5 {[%emt 0:00:00]} Rb2+ {[%emt 0:00:00]} 49. Kf3 {[%emt 0:00:00]} Rxa2 {[%emt 0:00:00]} 50. Rxd5+ {[%emt 0:00:00]} Ke6 {[%emt 0:00:00]} 51. Rd8 {[%emt 0:00:00]} Kf5 {[%emt 0:00:00]} 52. g4+ {[%emt 0:00:00]} Kg5 {[%emt 0:00:00]} 53. Rd5+ {[%emt 0:00:00]} Kg6 {[%emt 0:00:00]} 54. Kf4 {[%emt 0:00:00]} Ra4+ {[%emt 0:00:00]} 55. Kg3 {[%emt 0:00:00]} Ra1 {[%emt 0:00:00]} 56. Rd3 {[%emt 0:00:00]} Kg5 {[%emt 0:00:00]} 57. Rd5+ {[%emt 0:00:00]} Kg6 {[%emt 0:00:00]} 58. Rd3 {[%emt 0:00:00]} 1/2-1/2

[Event "EYTCC U18 Girls 2018"]
[Site "Bad Blankeburg"]
[Date "2018.07.16"]
[Round "5"]
[White "Nemcova, Karin"]
[Black "Hercog, Nusa"]
[Result "*"]
[WhiteElo "2133"]
[BlackElo "2011"]
[Annotator "NA"]
[PlyCount "30"]
[EventDate "2018.07.12"]
[EventType "swiss"]
[EventCountry "GER"]
[SourceTitle "playchess.com"]
[Source "ChessBase"]
[SourceQuality "1"]
[TimeControl "40/5400+30:1800+30"]

1. e4 {[%emt 0:00:00]} c5 {[%emt 0:00:00]} 2. Nf3 {[%emt 0:00:00]} e6 {[%emt 0:00:00]} 3. d4 {[%emt 0:00:00]} cxd4 {[%emt 0:00:00]} 4. Nxd4 {[%emt 0:00:00]} Nc6 {[%emt 0:00:00]} 5. Nc3 {[%emt 0:00:14]} Qc7 {[%emt 0:00:07]} 6. g3 {[%emt 0:00:13]} a6 {[%emt 0:01:11]} 7. Bg2 {[%emt 0:00:08]} Nf6 {[%emt 0:01:39]} 8. O-O {[%emt 0:00:29]} Be7 {[%emt 0:09:02]} 9. Re1 {[%emt 0:01:20]} O-O {[%emt 0:03:55] LiveBook: 154 Games} 10. Nxc6 {[%emt 0:12:15]} bxc6 {[%emt 0:00:43]} 11. e5 {[%emt 0:22:07]} Nd5 {[%emt 0:00:54]} 12. Na4 {[%emt 0:01:33]} Nb6 {[%emt 0:05:15]} 13. Nxb6 {[%emt 0:01:05]} Qxb6 {[%emt 0:00:19]} 14. c4 {[%emt 0:02:20]} f6 {[%emt 0:03:56]} 15. Qc2 {[%emt 0:03:48]} fxe5 $14 {[%emt 0:11:50]} *

[Event "EYTCC U18 Girls 2018"]
[Site "Bad Blankeburg"]
[Date "2018.07.16"]
[Round "5"]
[White "Rozman, Monika"]
[Black "Muetsch, Annmarie"]
[Result "1-0"]
[ECO "E43"]
[WhiteElo "2125"]
[BlackElo "2146"]
[Annotator "NA"]
[PlyCount "69"]
[EventDate "2018.07.12"]
[EventType "swiss"]
[EventCountry "GER"]
[SourceTitle "playchess.com"]
[Source "ChessBase"]
[SourceQuality "1"]
[TimeControl "40/5400+30:1800+30"]

1. d4 Nf6 2. c4 e6 3. Nc3 Bb4 4. e3 b6 5. a3 Bxc3+ 6. bxc3 c5 7. Bd3 {[%emt 0:01:28]} Nc6 {[%emt 0:03:53]} 8. Ne2 {[%emt 0:00:38]} O-O {[%emt 0:00:48]} 9. O-O {[%emt 0:00:24]} Ba6 {[%emt 0:01:47]} 10. e4 {[%emt 0:00:22]} Ne8 {[%emt 0:00:43] LiveBook: 225 Partien} 11. f4 {[%emt 0:00:18]} f5 {[%emt 0:01:12]} 12. Ng3 {[%emt 0:08:13]} g6 {[%emt 0:01:22]} 13. d5 {[%emt 0:05:44] E29: Nimzo-Indian: Sämisch: 5...0-0 6 e3 c5 7 Bd3 Nc6} (13. Be3 cxd4 14. cxd4 d5 15. cxd5 Bxd3 16. Qxd3 fxe4 17. Qxe4 Qxd5 18. Qxd5 exd5 19. Rac1 Ne7 20. Bd2 Rf7 21. Be3 Nc6 22. Bd2 Ne7 {½-½ (22) Bluvshtein,M (2590)-Mareco,S (2627) Moscow 2011}) 13... Na5 {[%emt 0:02:06]} 14. e5 $146 {[%emt 0:00:53]} ({Predecessor:} 14. Qe2 Nd6 15. Rd1 Qe8 16. e5 Nf7 17. d6 Kg7 {½-½ (18) Kouvatsos,F (1970)-Logothetis,S (2076) Chania 2000}) 14... Kh8 {[%emt 0:12:34]} (14... d6 $17) 15. Ra2 {[%emt 0:07:35]} Bxc4 {[%emt 0:06:38]} 16. Bxc4 {[%emt 0:00:36]} Nxc4 {[%emt 0:00:04]} 17. d6 {[%emt 0:01:12]} b5 {[%emt 0:05:59]} 18. Qd3 {[%emt 0:02:38]} Ng7 {[%emt 0:02:06]} 19. Be3 {[%emt 0:02:59]} Nxe3 $11 {[%emt 0:06:56]} 20. Qxe3 {[%emt 0:00:06]} Qb6 {[%emt 0:02:47]} 21. Rb1 {[%emt 0:02:50]} Qc6 {[%emt 0:06:23]} 22. Rab2 {[%emt 0:02:30]} a6 {[%emt 0:01:07]} 23. Ne2 {[%emt 0:03:41]} Nh5 {[%emt 0:03:35]} 24. c4 {[%emt 0:08:50]} bxc4 {[%emt 0:05:18]} 25. Nc3 {[%emt 0:00:11]} Rg8 {[%emt 0:06:11]} 26. Rb7 {[%emt 0:08:54]} Qc8 {[%emt 0:00:23]} 27. Rc7 {[%emt 0:04:26]} Qd8 {[%emt 0:02:03]} 28. Rbb7 {[%emt 0:01:48]} Rg7 {[%emt 0:00:12]} 29. Na4 {[%emt 0:07:12]} g5 {[%emt 0:08:16]} 30. Nb6 {[%emt 0:01:36]} Nxf4 {[%emt 0:05:21]} 31. Nxa8 {[%emt 0:01:52]} Qxa8 {[%emt 0:00:11]} 32. Qxc5 {[%emt 0:00:48]} Rg8 {[%emt 0:03:18]} 33. Rxd7 {[%emt 0:01:41]} Rc8 {[%emt 0:01:13]} 34. Rxh7+ {[%emt 0:00:32]} Kg8 {[%emt 0:00:06]} 35. Rhc7 {[%emt 0:00:16]} 1-0

[Event "EYTCC U18 Girls 2018"]
[Site "Bad Blankeburg"]
[Date "2018.07.16"]
[Round "5"]
[White "Blazeka, Mihaela"]
[Black "Schneider, Jana"]
[Result "1/2-1/2"]
[ECO "C07"]
[WhiteElo "2054"]
[BlackElo "2234"]
[Annotator "NA"]
[PlyCount "71"]
[EventDate "2018.07.12"]
[EventType "swiss"]
[EventCountry "GER"]
[SourceTitle "playchess.com"]
[Source "ChessBase"]
[SourceQuality "1"]
[TimeControl "40/5400+30:1800+30"]

1. e4 {[%emt 0:00:00]} e6 {[%emt 0:00:00]} 2. d4 {[%emt 0:00:00]} d5 {[%emt 0:00:00]} 3. Nd2 {[%emt 0:00:03]} c5 {[%emt 0:00:00]} 4. Ngf3 {[%emt 0:00:14]} cxd4 {[%emt 0:00:00]} 5. Nxd4 {[%emt 0:00:10]} Nc6 {[%emt 0:00:17]} 6. Bb5 {[%emt 0:00:07]} Bd7 {[%emt 0:00:15]} 7. Nxc6 {[%emt 0:00:07]} bxc6 {[%emt 0:00:07]} 8. Bd3 {[%emt 0:00:09]} Bd6 {[%emt 0:00:54] C07: Französische Verteidigung (Tarrasch-Variante)} 9. Qe2 {[%emt 0:00:07]} Ne7 {[%emt 0:00:20]} 10. e5 {[%emt 0:00:48]} Bc7 {[%emt 0:00:18]} 11. O-O {[%emt 0:01:33]} c5 $146 {[%emt 0:05:22]} ({Vorgänger:} 11... Qb8 12. Nf3 Ng6 13. Re1 a5 14. c4 a4 15. Bd2 Ra7 16. g3 {1-0 (37) Jones,G (2647)-Nevednichy,V (2549) Abu Dhabi 2015}) 12. b3 {[%emt 0:00:23]} Ng6 {[%emt 0:02:46]} 13. f4 {[%emt 0:01:39]} O-O {[%emt 0:03:42]} 14. Ba3 {[%emt 0:01:13]} Bb6 {[%emt 0:01:17]} 15. c4 {[%emt 0:00:12]} Re8 {[%emt 0:12:20]} 16. Qh5 {[%emt 0:04:34]} Bc6 {[%emt 0:06:38]} 17. Rad1 {[%emt 0:08:02]} a5 {[%emt 0:06:54] [#]} 18. Nf3 $1 {[%emt 0:04:42]} Nf8 {[%emt 0:02:30]} 19. Ng5 {[%emt 0:10:50]} g6 {[%emt 0:00:19]} 20. Qh6 {[%emt 0:03:12]} a4 {[%emt 0:03:09]} 21. Bc1 $2 {[%emt 0:10:37]} (21. f5 $18 {und der Rest ist Schweigen.} exf5 {[#]} 22. Bxf5 $1 {[%mdl 512]} gxf5 23. Rxf5) 21... axb3 {[%emt 0:01:23]} 22. axb3 {[%emt 0:00:12]} Ra2 {[%emt 0:02:00]} 23. Bb1 {[%emt 0:01:10]} Re2 {[%emt 0:03:44]} 24. Rf3 {[%emt 0:13:37]} f5 {[%emt 0:10:04]} 25. Kf1 {[%emt 0:10:30]} Rxg2 {[%emt 0:04:24]} 26. Kxg2 {[%emt 0:00:36]} d4 {[%emt 0:00:08]} 27. Qh3 {[%emt 0:08:09]} Kg7 {[%emt 0:03:19]} 28. Qg3 {[%emt 0:01:29]} Qa8 {[%emt 0:02:49]} 29. Bb2 {[%emt 0:01:41]} Bd8 {[%emt 0:01:31]} 30. Kf2 {[%emt 0:02:50]} h6 {[%emt 0:00:44]} 31. h4 {[%emt 0:04:57]} hxg5 {[%emt 0:00:46]} 32. hxg5 {[%emt 0:00:08]} Bxf3 {[%emt 0:00:45]} 33. Qxf3 {[%emt 0:00:04]} Qxf3+ $11 {[%emt 0:02:07]} 34. Kxf3 {[%emt 0:00:05]} Ba5 {[%emt 0:02:44]} 35. Ba3 {[%emt 0:03:02]} Rc8 {[%emt 0:04:00]} 36. Ke2 {[%emt 0:04:17]} 1/2-1/2